bitfinex/quotes_BTCUSD_20251011
["timestamp","ask_amount","ask_price","bid_price","bid_amount"]
[1760179547820,0.2069259,112280.0,112270.0,0.07722914]
[1760179548252,0.5459259,112280.0,112270.0,0.07722914]
[1760179548464,0.5449259,112280.0,112270.0,0.07722914]
[1760179550162,0.5800859,112280.0,112270.0,0.04206914]
[1760179550400,0.5800859,112280.0,112270.0,0.02433914]
[1760179550617,0.5449259,112280.0,112270.0,0.07722914]
[1760179551281,0.3324405,112280.0,112270.0,0.07722914]
[1760179551502,0.51056661,112280.0,112270.0,0.07722914]
[1760179551724,0.53736334,112280.0,112270.0,0.07722914]
[1760179553445,0.53736334,112280.0,112270.0,0.04206914]
[1760179553446,0.57279334,112280.0,112270.0,0.04206914]
[1760179553679,0.54892334,112280.0,112270.0,0.07722914]
[1760179554099,0.57279334,112280.0,112270.0,0.04206914]
[1760179555252,0.54892334,112280.0,112270.0,0.07722914]
[1760179556178,0.53736334,112280.0,112270.0,0.07722914]
[1760179559906,0.51056661,112280.0,112270.0,0.07722914]
[1760179562553,0.51056661,112280.0,112270.0,0.08728472]
[1760179563407,0.2095748,112290.0,112270.0,0.26542669]
[1760179563624,0.17812611,112280.0,112270.0,0.04206914]
[1760179564282,0.17812611,112280.0,112270.0,0.17729363]
[1760179564689,0.17812611,112280.0,112270.0,0.27729358]
[1760179565978,0.17812611,112280.0,112270.0,0.27829358]
[1760179566413,0.17812611,112280.0,112270.0,0.27929358]
[1760179569131,0.17812611,112280.0,112270.0,0.07929914]
[1760179569668,0.17812611,112280.0,112270.0,0.07829914]
[1760179570295,0.17812611,112280.0,112270.0,0.07729914]
[1760179570931,0.20168611,112280.0,112270.0,0.04206914]
[1760179571085,0.24795611,112280.0,112270.0,0.00062914]
[1760179572991,0.21324611,112280.0,112270.0,0.02438914]
[1760179573411,0.21324611,112280.0,112270.0,0.04309914]
[1760179573817,0.23763525,112280.0,112270.0,0.04309914]
[1760179574652,0.27234525,112280.0,112270.0,0.01933914]
[1760179574848,0.27234525,112280.0,112270.0,0.00062914]
[1760179575765,0.23763525,112280.0,112270.0,0.00062914]
[1760179575969,0.27234525,112280.0,112270.0,0.00062914]
[1760179576910,0.23763525,112280.0,112270.0,0.02438914]
[1760179577865,0.27234525,112280.0,112270.0,0.00062914]
[1760179579225,0.23763525,112280.0,112270.0,0.02438914]
[1760179580142,0.57763525,112280.0,112270.0,0.02438914]
[1760179580357,0.57763525,112280.0,112270.0,0.04309914]
[1760179581057,0.57763525,112280.0,112270.0,0.07832914]
[1760179581787,0.54251525,112280.0,112270.0,0.07832914]
[1760179582675,0.56607525,112280.0,112270.0,0.04309914]
[1760179582881,0.57763525,112280.0,112270.0,0.07832914]
[1760179583780,0.55407525,112280.0,112270.0,0.07832914]
[1760179584013,0.54251525,112280.0,112270.0,0.07832914]
[1760179587092,0.54251525,112280.0,112270.0,0.08590443]
[1760179587306,0.17812611,112280.0,112270.0,0.2640464]
[1760179587515,0.17812611,112280.0,112270.0,0.3564656]
[1760179587725,0.2049162,112290.0,112270.0,0.3564656]
[1760179587978,0.17812611,112280.0,112270.0,0.3212356]
[1760179588186,0.2049162,112290.0,112280.0,0.01743]
[1760179588413,0.2049162,112290.0,112280.0,0.04043]
[1760179588626,0.2049162,112290.0,112280.0,0.08440048]
[1760179588839,0.2049162,112290.0,112280.0,0.18439497]
[1760179589044,0.20490284,112290.0,112280.0,0.17672449]
[1760179589463,0.20490284,112290.0,112280.0,0.45485055]
[1760179590086,0.20490284,112290.0,112280.0,0.45585055]
[1760179590087,0.02679259,112290.0,112280.0,0.45585055]
[1760179590297,0.17810566,112300.0,112290.0,0.17811025]
[1760179590526,0.02678742,112300.0,112290.0,0.23184025]
[1760179590754,0.17809439,112300.0,112290.0,0.07673]
[1760179593595,0.18311814,112310.0,112290.0,0.07673]
[1760179593803,0.17809439,112300.0,112290.0,0.04043]
[1760179594345,0.17809439,112300.0,112290.0,0.07673]
[1760179595237,0.17809439,112300.0,112290.0,0.17672449]
[1760179595439,0.18311814,112310.0,112290.0,0.35483474]
[1760179595761,0.02678634,112310.0,112300.0,0.24134446]
[1760179595957,0.02678634,112310.0,112300.0,0.17672995]
[1760179595958,0.20486487,112310.0,112300.0,0.17672995]
[1760179596654,0.20486487,112310.0,112300.0,0.27672444]
[1760179598226,0.20486487,112310.0,112300.0,0.27772444]
[1760179598841,0.20486487,112310.0,112300.0,0.27872444]
[1760179601541,0.20602182,112310.0,112300.0,0.27872444]
[1760179602288,0.02794329,112310.0,112300.0,0.45681883]
[1760179602618,0.02794329,112310.0,112300.0,1.45262021]
[1760179602619,0.00115695,112310.0,112300.0,1.45262021]
[1760179604072,0.00115695,112310.0,112300.0,0.95197071]
[1760179608862,0.00115695,112310.0,112300.0,1.45262021]
[1760179609686,0.00115695,112310.0,112300.0,0.95197071]
[1760179612131,0.00115695,112310.0,112300.0,0.61197071]
[1760179612537,0.00115695,112310.0,112300.0,1.01197071]
[1760179615327,0.00115695,112310.0,112300.0,1.35197071]
[1760179616832,0.00115695,112310.0,112300.0,1.35097071]
[1760179617086,0.00115695,112310.0,112300.0,1.34997071]
[1760179617286,0.00115695,112310.0,112300.0,1.35397071]
[1760179617701,0.00115695,112310.0,112300.0,1.34997071]
[1760179617855,0.00115695,112310.0,112300.0,1.35197071]
[1760179618470,0.00115695,112310.0,112300.0,0.95197071]
[1760179618637,0.00115695,112310.0,112300.0,0.61197071]
[1760179618851,0.17923548,112310.0,112300.0,0.61197071]
[1760179619508,0.17923548,112310.0,112300.0,0.45681883]
[1760179619654,0.17923548,112310.0,112300.0,0.27772444]
[1760179619864,0.17923548,112310.0,112300.0,0.27672444]
[1760179620087,0.17923548,112310.0,112300.0,0.27772444]
[1760179620301,0.17923548,112310.0,112300.0,0.30887634]
[1760179620481,0.17923548,112310.0,112300.0,0.30687634]
[1760179620679,0.17923548,112310.0,112300.0,0.48497073]
[1760179620881,0.17923548,112310.0,112300.0,0.30887634]
[1760179621064,0.17923548,112310.0,112300.0,0.27872444]
[1760179621270,0.17923548,112310.0,112300.0,0.07873]
[1760179621876,0.21578548,112310.0,112300.0,0.04243]
[1760179622542,0.19196548,112310.0,112300.0,0.07633]
[1760179622872,0.19196548,112310.0,112300.0,0.07533]
[1760179623073,0.19196548,112310.0,112300.0,0.07433]
[1760179623492,0.17923548,112310.0,112300.0,0.07433]
[1760179624026,0.21578548,112310.0,112300.0,0.04043]
[1760179624436,0.17809439,112300.0,112290.0,0.05133]
[1760179624659,0.17809439,112300.0,112290.0,0.07398]
[1760179625094,0.58030435,112300.0,112290.0,0.04008]
[1760179625288,0.17811025,112290.0,112280.0,0.05228353]
[1760179625699,0.17811025,112290.0,112280.0,0.07493353]
[1760179628120,0.17811025,112290.0,112280.0,0.08468466]
[1760179628467,0.54488435,112300.0,112280.0,0.26281077]
[1760179628668,0.17811025,112290.0,112280.0,0.21915964]
[1760179628895,0.20488435,112300.0,112290.0,0.01828]
[1760179629103,0.17809439,112300.0,112290.0,0.21904025]
[1760179629313,0.17809439,112300.0,112290.0,0.25294025]
[1760179629747,0.17809439,112300.0,112290.0,0.17482449]
[1760179629952,0.17867292,112300.0,112290.0,0.07483]
[1760179630237,0.17867292,112300.0,112290.0,0.07683]
[1760179630762,0.17867292,112300.0,112290.0,0.36376797]
[1760179630967,0.00057853,112300.0,112290.0,0.3539402]
[1760179631174,0.00057853,112300.0,112290.0,0.3529402]
[1760179631377,0.00057853,112300.0,112290.0,0.51927806]
[1760179632677,0.17867292,112300.0,112290.0,0.52027806]
[1760179633305,0.00057853,112300.0,112290.0,0.51927806]
[1760179633543,0.17867292,112300.0,112290.0,0.52127806]
[1760179635189,0.17867292,112300.0,112290.0,0.45493469]
[1760179638937,0.00057853,112300.0,112290.0,0.45493469]
[1760179639117,0.17867292,112300.0,112290.0,0.45493469]
[1760179639759,0.00057853,112300.0,112290.0,0.45493469]
[1760179640176,0.17867292,112300.0,112290.0,0.45493469]
[1760179640383,0.17867292,112300.0,112290.0,0.52248139]
[1760179640589,0.17867292,112300.0,112290.0,0.34437114]
[1760179640921,0.17867292,112300.0,112290.0,0.52248139]
[1760179643274,0.00057853,112300.0,112290.0,0.52248139]
[1760179646148,0.00057853,112300.0,112290.0,0.55263329]
[1760179646356,0.00057853,112300.0,112290.0,0.67763327]
[1760179647479,0.00057853,112300.0,112290.0,0.57763328]
[1760179647679,0.00057853,112300.0,112290.0,0.67763327]
[1760179648542,0.00057853,112300.0,112290.0,1.09727801]
[1760179648940,0.00057853,112300.0,112290.0,1.09627801]
[1760179649177,0.00057853,112300.0,112290.0,1.09727801]
[1760179649562,0.00057853,112300.0,112290.0,1.09627801]
[1760179649767,0.00057853,112300.0,112290.0,1.09527801]
[1760179649903,0.00057853,112300.0,112290.0,1.09727801]
[1760179650763,0.00057853,112300.0,112290.0,1.09827801]
[1760179651403,0.00057853,112300.0,112290.0,1.09727801]
[1760179651906,0.00057853,112300.0,112290.0,1.09827801]
[1760179652149,0.1780507,112330.0,112310.0,0.20823043]
[1760179652399,0.1780507,112330.0,112320.0,0.21312267]
[1760179652663,0.1780507,112330.0,112320.0,0.25242267]
[1760179652913,0.21371419,112340.0,112330.0,0.17804682]
[1760179653124,0.21371419,112340.0,112330.0,0.0393]
[1760179653331,0.18034414,112340.0,112330.0,0.07441042]
[1760179654987,0.18034414,112340.0,112330.0,0.08316974]
[1760179655689,0.00231317,112340.0,112330.0,0.4913629]
[1760179655901,0.00231317,112340.0,112330.0,0.50760357]
[1760179656124,0.17532915,112350.0,112340.0,0.17803097]
[1760179656340,0.21368422,112360.0,112350.0,0.17801513]
[1760179656576,0.18265541,112370.0,112350.0,0.25237513]
[1760179656802,0.18265541,112370.0,112360.0,0.05203]
[1760179657018,0.20942865,112370.0,112360.0,0.05203]
[1760179657207,0.20942865,112370.0,112360.0,0.07436]
[1760179657441,0.20942865,112370.0,112360.0,0.08400776]
[1760179657682,0.18265541,112370.0,112360.0,0.08400776]
[1760179659203,0.20494482,112380.0,112360.0,0.26200704]
[1760179659423,0.17817323,112380.0,112370.0,0.17798344]
[1760179659577,0.1781676,112380.0,112370.0,0.25234344]
[1760179659983,0.0002,112380.0,112370.0,0.35233793]
[1760179660203,0.0002,112380.0,112370.0,0.38248983]
[1760179660404,0.0002,112380.0,112370.0,0.48248978]
[1760179660606,0.00070453,112380.0,112370.0,0.48248978]
[1760179661910,0.00070453,112380.0,112370.0,0.48348978]
[1760179662274,0.00301647,112380.0,112370.0,0.48348978]
[1760179662934,0.00301647,112380.0,112370.0,0.27635444]
[1760179662935,0.18098407,112380.0,112370.0,0.27635444]
[1760179663389,0.23582407,112380.0,112370.0,0.0413]
[1760179663601,0.25204407,112380.0,112370.0,0.01897]
[1760179663781,0.61881564,112380.0,112370.0,0.002]
[1760179664049,0.6234682,112380.0,112370.0,0.001]
[1760179664227,0.17801513,112350.0,112340.0,0.01697]
[1760179664450,0.17803097,112340.0,112330.0,0.28986104]
[1760179664650,0.17803097,112340.0,112330.0,0.31163104]
[1760179665067,0.20481055,112340.0,112330.0,0.24000742]
[1760179665504,0.24301055,112340.0,112330.0,0.24000742]
[1760179665611,0.24301055,112340.0,112330.0,0.24005784]
[1760179665821,0.24301055,112340.0,112330.0,0.20099784]
[1760179666029,0.27587055,112340.0,112330.0,0.20099784]
[1760179666674,0.61587055,112340.0,112330.0,0.0010034]
[1760179667557,0.61587055,112340.0,112330.0,0.0020034]
[1760179668033,0.61587055,112340.0,112330.0,0.0010034]
[1760179668893,0.58301055,112340.0,112330.0,0.0227734]
[1760179669087,0.61587055,112340.0,112330.0,0.0010034]
[1760179669296,0.61687055,112340.0,112330.0,0.0010034]
[1760179683821,0.64702245,112340.0,112330.0,0.0010034]
[1760179684037,0.17807853,112310.0,112300.0,0.06310832]
[1760179684247,0.19444853,112310.0,112300.0,0.06315874]
[1760179684457,0.25207853,112310.0,112300.0,0.06315874]
[1760179684606,0.17807853,112310.0,112300.0,0.13543874]
[1760179684927,0.20486884,112310.0,112300.0,0.13543874]
[1760179685164,0.20486884,112310.0,112300.0,0.07233042]
[1760179685722,0.22784884,112310.0,112300.0,0.07233042]
[1760179686049,0.20486884,112310.0,112300.0,0.07233042]
[1760179688361,0.54486884,112310.0,112300.0,0.07233042]
[1760179689054,0.61886884,112310.0,112300.0,5.042e-05]
[1760179689685,0.61886884,112310.0,112300.0,0.02431574]
[1760179690016,0.61886884,112310.0,112300.0,0.00178574]
[1760179691229,0.61886884,112310.0,112300.0,0.02431574]
[1760179691230,0.58421884,112310.0,112300.0,0.02431574]
[1760179691432,0.54486884,112310.0,112300.0,0.07406574]
[1760179692670,0.20486884,112310.0,112300.0,0.07406574]
[1760179692915,0.22784884,112310.0,112300.0,0.07406574]
[1760179693348,0.22784884,112310.0,112300.0,0.04131574]
[1760179693776,0.54486884,112310.0,112300.0,0.07406574]
[1760179696945,0.17807853,112310.0,112300.0,0.07406574]
[1760179697159,0.22784734,112310.0,112300.0,0.07406574]
[1760179697761,0.22784734,112310.0,112300.0,0.04131574]
[1760179698184,0.24421734,112310.0,112300.0,0.04131574]
[1760179698595,0.24421734,112310.0,112300.0,0.07406574]
[1760179698998,0.54486734,112310.0,112300.0,0.07406574]
[1760179699618,0.56784734,112310.0,112300.0,0.02356283]
[1760179699793,0.58421734,112310.0,112300.0,0.02356283]
[1760179701130,0.17809439,112300.0,112290.0,0.05004]
[1760179701343,0.17809439,112300.0,112290.0,0.05009044]
[1760179701564,0.17809439,112300.0,112290.0,0.07262044]
[1760179701782,0.20107439,112300.0,112290.0,0.1404435]
[1760179701994,0.2442332,112300.0,112290.0,0.04044901]
[1760179702225,0.2048832,112300.0,112290.0,0.07319901]
[1760179702434,0.2048832,112300.0,112290.0,0.07519901]
[1760179702849,0.2048832,112300.0,112290.0,0.07419901]
[1760179703931,0.2788832,112300.0,112290.0,0.01891901]
[1760179704147,0.2788832,112300.0,112290.0,0.00062901]
[1760179705840,0.17811025,112290.0,112280.0,0.03294499]
[1760179706052,0.17811025,112290.0,112280.0,0.15552541]
[1760179706442,0.17811025,112290.0,112280.0,0.12277541]
[1760179706649,0.17811025,112290.0,112280.0,0.2559799]
[1760179707537,0.17811025,112290.0,112280.0,0.2569799]
[1760179708298,0.17811025,112290.0,112280.0,0.2579799]
[1760179710763,0.17811025,112290.0,112280.0,0.2247699]
[1760179710897,0.17811025,112290.0,112280.0,0.2579799]
[1760179711419,0.17811025,112290.0,112280.0,0.25855854]
[1760179711784,0.20490162,112290.0,112280.0,0.25855854]
[1760179712239,0.20490162,112290.0,112280.0,0.22534854]
[1760179712647,0.20490162,112290.0,112280.0,0.25855854]
[1760179713506,0.02679137,112290.0,112280.0,0.46683655]
[1760179713624,0.02679137,112290.0,112280.0,0.28871044]
[1760179713832,0.20490162,112290.0,112280.0,0.43668465]
[1760179714041,0.02679137,112290.0,112280.0,0.43668465]
[1760179714868,0.20490162,112290.0,112280.0,0.43668465]
[1760179715293,0.20490162,112290.0,112280.0,0.25855854]
[1760179715500,0.20490162,112290.0,112280.0,0.43668465]
[1760179715923,0.20490162,112290.0,112280.0,0.25855854]
[1760179716190,0.20490162,112290.0,112280.0,0.43668465]
[1760179716832,0.02679137,112290.0,112280.0,0.43668465]
[1760179719108,0.20490162,112290.0,112280.0,0.43668465]
[1760179719723,0.20490162,112290.0,112280.0,0.25855854]
[1760179720568,0.22668162,112290.0,112280.0,0.22534854]
[1760179720803,0.20490162,112290.0,112280.0,0.25855854]
[1760179726933,0.20490162,112290.0,112280.0,0.20262355]
[1760179726934,0.27825162,112290.0,112280.0,0.20262355]
[1760179727129,0.27825162,112290.0,112280.0,0.00262911]
[1760179727876,0.27825162,112290.0,112280.0,0.00062911]
[1760179732764,0.25630462,112290.0,112280.0,0.00062911]
[1760179733629,0.60096091,112290.0,112280.0,0.00062911]
[1760179735004,0.60196091,112290.0,112280.0,0.00062911]
[1760179736141,0.60296091,112290.0,112280.0,0.00062911]
[1760179736576,0.60196091,112290.0,112280.0,0.00062911]
[1760179736798,0.60296091,112290.0,112280.0,0.00062911]
[1760179737238,0.60196091,112290.0,112280.0,0.00062911]
[1760179737673,0.60296091,112290.0,112280.0,0.00062911]
[1760179738645,0.60196091,112290.0,112280.0,0.00062911]
[1760179739078,0.60096091,112290.0,112280.0,0.00062911]
[1760179739287,0.60196091,112290.0,112280.0,0.00062911]
[1760179739756,0.60096091,112290.0,112280.0,0.00062911]
[1760179739949,0.57901391,112290.0,112280.0,0.00062911]
[1760179740378,0.605811,112290.0,112280.0,0.00062911]
[1760179752942,0.605931,112290.0,112280.0,0.00062911]
[1760179754735,0.532461,112290.0,112280.0,0.02251911]
[1760179755581,0.532461,112290.0,112280.0,0.05641911]
[1760179755992,0.555321,112290.0,112280.0,0.02251911]
[1760179756205,0.532461,112290.0,112280.0,0.02251911]
[1760179756623,0.532461,112290.0,112280.0,0.05641911]
[1760179759006,0.18780471,112290.0,112280.0,0.23454522]
[1760179759207,0.52780471,112290.0,112280.0,0.23454522]
[1760179759632,0.20490734,112290.0,112280.0,0.23454522]
[1760179759815,0.02679709,112290.0,112280.0,0.23454522]
[1760179760258,0.02679709,112290.0,112280.0,0.26469712]
[1760179760672,0.02679709,112290.0,112280.0,0.36469161]
[1760179761077,0.02679709,112290.0,112280.0,0.36569161]
[1760179761290,0.02679709,112290.0,112280.0,0.46669156]
[1760179761530,0.02679709,112290.0,112280.0,0.46569156]
[1760179761973,0.02679709,112290.0,112280.0,0.46669156]
[1760179762387,0.02679709,112290.0,112280.0,0.46569156]
[1760179762953,0.02679709,112290.0,112280.0,0.46469156]
[1760179763156,0.20490734,112290.0,112280.0,0.46469156]
[1760179763367,0.20490734,112290.0,112280.0,0.25741355]
[1760179763549,0.20490734,112290.0,112280.0,0.05741911]
[1760179763994,0.20490734,112290.0,112280.0,0.05841911]
[1760179764190,0.20490734,112290.0,112280.0,0.1574136]
[1760179764396,0.20490734,112290.0,112280.0,0.1564136]
[1760179764561,0.20490734,112290.0,112280.0,0.05641911]
[1760179764747,0.20490734,112290.0,112280.0,0.05741911]
[1760179764947,0.20490734,112290.0,112280.0,0.05841911]
[1760179765362,0.20490734,112290.0,112280.0,0.05741911]
[1760179765778,0.02653202,112290.0,112280.0,0.23554522]
[1760179766230,0.02653202,112290.0,112280.0,0.26469712]
[1760179766400,0.02653202,112290.0,112280.0,0.36469161]
[1760179766611,0.02653202,112290.0,112280.0,0.36569161]
[1760179766854,0.02653202,112290.0,112280.0,0.46469156]
[1760179767375,0.02653202,112290.0,112280.0,0.46569156]
[1760179767499,0.02653202,112290.0,112280.0,0.46469156]
[1760179767705,0.00095339,112300.0,112290.0,0.17811025]
[1760179767909,0.00095339,112300.0,112290.0,0.21912024]
[1760179768137,0.00095339,112300.0,112290.0,0.27415024]
[1760179768753,0.00095339,112300.0,112290.0,0.34233203]
[1760179768968,0.00095339,112300.0,112290.0,0.51832648]
[1760179769179,0.00095339,112300.0,112290.0,0.54332647]
[1760179769582,0.00095339,112300.0,112290.0,0.54432647]
[1760179771297,0.00095339,112300.0,112290.0,0.51932648]
[1760179772059,0.0277367,112300.0,112290.0,0.51932648]
[1760179772265,0.00095339,112300.0,112290.0,0.54432647]
[1760179772575,0.00095339,112300.0,112290.0,0.88432647]
[1760179773351,0.00095339,112300.0,112290.0,1.28432647]
[1760179774653,0.00095339,112300.0,112290.0,0.88432647]
[1760179776745,0.00095339,112300.0,112290.0,0.54432647]
[1760179777783,0.00095339,112300.0,112290.0,0.88432647]
[1760179778022,0.00095339,112300.0,112290.0,1.01447836]
[1760179779615,0.00095339,112300.0,112290.0,1.67309637]
[1760179779812,0.00095339,112300.0,112290.0,2.07309637]
[1760179780823,0.00095339,112300.0,112290.0,1.01447836]
[1760179782241,0.00095339,112300.0,112290.0,1.41447836]
[1760179785618,0.00095339,112300.0,112290.0,1.07447836]
[1760179786360,0.00095339,112300.0,112290.0,1.41447836]
[1760179790559,0.00095339,112300.0,112290.0,2.07309637]
[1760179793257,0.00095339,112300.0,112290.0,1.01447836]
[1760179793630,0.00095339,112300.0,112290.0,0.98947837]
[1760179794149,0.00095339,112300.0,112290.0,0.95932647]
[1760179794348,0.00095339,112300.0,112290.0,0.98947837]
[1760179794569,0.17904778,112300.0,112290.0,0.40318633]
[1760179794773,0.17904778,112300.0,112290.0,0.30318634]
[1760179794981,0.20583348,112300.0,112290.0,0.27303444]
[1760179795363,0.22846348,112300.0,112290.0,0.04072]
[1760179796229,0.22846348,112300.0,112290.0,0.03972]
[1760179796435,0.22846348,112300.0,112290.0,0.03872]
[1760179796590,0.24419348,112300.0,112290.0,0.03872]
[1760179797177,0.20488009,112300.0,112290.0,0.07092]
[1760179797332,0.19530681,112300.0,112290.0,0.07092]
[1760179798432,0.13021747,112310.0,112290.0,0.08050151]
[1760179798596,0.13021747,112310.0,112300.0,0.01541]
[1760179798802,0.13021747,112310.0,112300.0,0.0367]
[1760179799119,0.1570068,112310.0,112300.0,0.0689]
[1760179799768,0.1570068,112310.0,112300.0,0.0367]
[1760179799769,0.1790568,112310.0,112300.0,0.0367]
[1760179799972,0.2254568,112310.0,112300.0,0.01541]
[1760179800320,0.5347868,112310.0,112300.0,0.0367]
[1760179800529,0.5654568,112310.0,112300.0,0.01541]
[1760179800997,0.4970068,112310.0,112300.0,0.0367]
[1760179801197,0.4970068,112310.0,112300.0,0.0689]
[1760179801560,0.5190568,112310.0,112300.0,0.0367]
[1760179802051,0.5127368,112310.0,112300.0,0.0367]
[1760179802230,0.1727368,112310.0,112300.0,0.0367]
[1760179802634,0.1947868,112310.0,112300.0,0.0367]
[1760179803080,0.17809439,112300.0,112290.0,0.01601]
[1760179803566,0.17809439,112300.0,112290.0,0.0373]
[1760179804030,0.20488279,112300.0,112290.0,0.0373]
[1760179804267,0.20488279,112300.0,112290.0,0.03825343]
[1760179806050,0.22693279,112300.0,112290.0,0.03825343]
[1760179806859,0.20488279,112300.0,112290.0,0.03825343]
[1760179807320,0.20488279,112300.0,112290.0,0.07045343]
[1760179808559,0.20488279,112300.0,112290.0,0.17044792]
[1760179809343,0.20488279,112300.0,112290.0,0.27044787]
[1760179809540,0.20488279,112300.0,112290.0,0.27144787]
[1760179809931,0.20488279,112300.0,112290.0,0.27244787]
[1760179814818,0.0267884,112300.0,112290.0,0.28071558]
[1760179815253,0.00057844,112310.0,112300.0,0.17809439]
[1760179815474,0.00057844,112310.0,112300.0,0.24044629]
[1760179815685,0.02736177,112310.0,112300.0,0.26173629]
[1760179816110,0.00057844,112310.0,112300.0,0.26173629]
[1760179816538,0.00057844,112310.0,112300.0,0.46173073]
[1760179817667,0.00057844,112310.0,112300.0,0.46273073]
[1760179818189,0.00057844,112310.0,112300.0,0.46173073]
[1760179818396,0.00057844,112310.0,112300.0,0.46273073]
[1760179818854,0.17865697,112310.0,112300.0,0.46373073]
[1760179819527,0.17865697,112310.0,112300.0,0.25548444]
[1760179819731,0.17865697,112310.0,112300.0,0.05549]
[1760179819940,0.20544255,112310.0,112300.0,0.05549]
[1760179820356,0.20544255,112310.0,112300.0,0.15548449]
[1760179820557,0.02736402,112310.0,112300.0,0.33257888]
[1760179820694,0.20544255,112310.0,112300.0,0.25548444]
[1760179821081,0.20544255,112310.0,112300.0,0.25448444]
[1760179821407,0.20544255,112310.0,112300.0,0.25348444]
[1760179821848,0.20544255,112310.0,112300.0,0.25448444]
[1760179822288,0.20544255,112310.0,112300.0,0.25348444]
[1760179823540,0.20544255,112310.0,112300.0,0.25448444]
[1760179824958,0.02736402,112310.0,112300.0,0.43257883]
[1760179825159,0.20544255,112310.0,112300.0,0.25448444]
[1760179826495,0.02736402,112310.0,112300.0,0.43257883]
[1760179826706,0.02736402,112310.0,112300.0,0.46273073]
[1760179826911,0.00057844,112310.0,112300.0,0.46273073]
[1760179831259,0.17865697,112310.0,112300.0,0.25448444]
[1760179831646,0.20544087,112310.0,112300.0,0.25448444]
[1760179838354,0.22810087,112310.0,112300.0,0.22228444]
[1760179839028,0.20544087,112310.0,112300.0,0.22228444]
[1760179839231,0.20544087,112310.0,112300.0,0.25573444]
[1760179839663,0.02736234,112310.0,112300.0,0.43382883]
[1760179840066,0.20544087,112310.0,112300.0,0.43382883]
[1760179842369,0.02736234,112310.0,112300.0,0.46398073]
[1760179842581,0.00057844,112310.0,112300.0,1.40873515]
[1760179842786,0.00057844,112310.0,112300.0,1.32909041]
[1760179842997,0.00057844,112310.0,112300.0,1.72909041]
[1760179843210,0.00017845,112310.0,112300.0,1.84013704]
[1760179843636,0.00017845,112310.0,112300.0,1.32809041]
[1760179844057,0.00017845,112310.0,112300.0,1.72909041]
[1760179844432,0.00017845,112310.0,112300.0,1.80970724]
[1760179845956,0.00017845,112310.0,112300.0,1.80870724]
[1760179846170,0.00017845,112310.0,112300.0,1.81070724]
[1760179847031,0.00017845,112310.0,112300.0,1.91070723]
[1760179847172,0.00017845,112310.0,112300.0,1.92061992]
[1760179847800,0.00017845,112310.0,112300.0,2.03166655]
[1760179848478,0.02677728,112350.0,112340.0,0.17803097]
[1760179848707,0.24962313,112360.0,112340.0,0.18591097]
[1760179849060,0.2763975,112360.0,112350.0,0.06102]
[1760179849262,0.20477388,112360.0,112350.0,0.06102]
[1760179849607,0.20477388,112360.0,112350.0,0.06107047]
[1760179850215,0.20477388,112360.0,112350.0,0.07148049]
[1760179850422,0.20477388,112360.0,112350.0,0.06107047]
[1760179850622,0.20477388,112360.0,112350.0,0.26106491]
[1760179852580,0.20477388,112360.0,112350.0,0.43908004]
[1760179853548,0.20477388,112360.0,112350.0,0.26106491]
[1760179853748,0.27444388,112360.0,112350.0,0.20792491]
[1760179853959,0.27444388,112360.0,112350.0,0.20004491]
[1760179854167,0.27444388,112360.0,112350.0,5.047e-05]
[1760179854376,0.20766471,112360.0,112350.0,0.06070047]
[1760179855201,0.22885471,112360.0,112350.0,0.12850496]
[1760179855374,0.20766471,112360.0,112350.0,0.12850496]
[1760179855794,0.20766471,112360.0,112350.0,0.22850491]
[1760179856179,0.22885471,112360.0,112350.0,0.22850491]
[1760179856594,0.24489471,112360.0,112350.0,0.22850491]
[1760179860763,0.04606713,112360.0,112350.0,0.22850491]
[1760179860964,0.00883713,112360.0,112350.0,0.43711004]
[1760179861176,0.00289083,112360.0,112350.0,0.43711004]
[1760179862467,0.00289083,112360.0,112350.0,0.43811004]
[1760179863502,0.00289083,112360.0,112350.0,0.43911004]
[1760179864290,0.00289083,112360.0,112350.0,0.46926194]
[1760179866046,0.00289083,112360.0,112350.0,0.80926194]
[1760179867020,0.00289083,112360.0,112350.0,1.43437161]
[1760179867709,0.00289083,112360.0,112350.0,1.50210273]
[1760179867912,0.17795177,112390.0,112380.0,0.17796112]
[1760179868115,0.17795177,112390.0,112380.0,0.24191112]
[1760179868260,0.2099027,112400.0,112380.0,0.24191112]
[1760179868472,0.1831361,112400.0,112390.0,0.04207]
[1760179868672,0.1831361,112400.0,112390.0,0.06395]
[1760179868903,0.1831361,112400.0,112390.0,0.17187252]
[1760179869271,0.2095967,112410.0,112390.0,0.34982429]
[1760179869407,0.17793594,112400.0,112390.0,0.31130626]
[1760179869621,0.17844057,112400.0,112390.0,0.31130626]
[1760179870047,0.17844057,112400.0,112390.0,0.44189621]
[1760179870403,0.00050463,112400.0,112390.0,0.44189621]
[1760179877439,0.17844057,112400.0,112390.0,0.44189621]
[1760179878980,0.18075189,112400.0,112390.0,0.44189621]
[1760179879191,0.00281595,112400.0,112390.0,0.44289621]
[1760179880041,0.00281595,112400.0,112390.0,0.44389621]
[1760179889594,0.00281595,112400.0,112390.0,0.81404811]
[1760179889903,0.00281595,112400.0,112390.0,1.21404811]
[1760179890338,0.00254828,112400.0,112390.0,1.21404811]
[1760179890534,0.00254828,112400.0,112390.0,1.2806731]
[1760179890736,0.00254828,112400.0,112390.0,1.2796731]
[1760179890945,0.00254828,112400.0,112390.0,1.2806731]
[1760179892318,0.00254828,112400.0,112390.0,1.2796731]
[1760179892526,0.00254828,112400.0,112390.0,1.21304811]
[1760179892742,0.00254828,112400.0,112390.0,0.81404811]
[1760179897807,0.00254828,112400.0,112390.0,0.78389621]
[1760179898939,0.00254828,112400.0,112390.0,0.78289621]
[1760179899115,0.00254828,112400.0,112390.0,0.78189621]
[1760179899549,0.18048422,112400.0,112390.0,0.44189621]
[1760179900190,0.18048422,112400.0,112390.0,0.26394444]
[1760179901723,0.00254828,112400.0,112390.0,0.44189621]
[1760179901923,0.18048422,112400.0,112390.0,0.44189621]
[1760179902917,0.00254828,112400.0,112390.0,0.44189621]
[1760179903422,0.00254828,112400.0,112390.0,0.47204811]
[1760179905214,0.02930856,112400.0,112390.0,0.47204811]
[1760179905647,0.2072445,112400.0,112390.0,0.47204811]
[1760179906020,0.2072445,112400.0,112390.0,0.26394444]
[1760179907464,0.02930856,112400.0,112390.0,0.44189621]
[1760179908077,0.02930856,112400.0,112390.0,0.47204811]
[1760179909438,0.02930856,112400.0,112390.0,0.47304811]
[1760179910224,0.00258203,112400.0,112390.0,0.47304811]
[1760179911432,0.00258203,112400.0,112390.0,0.48204811]
[1760179912354,0.18051797,112400.0,112390.0,0.27394444]
[1760179912763,0.18051797,112400.0,112390.0,0.27494444]
[1760179914397,0.18051797,112400.0,112390.0,0.27394444]
[1760179914795,0.21674797,112400.0,112390.0,0.24335444]
[1760179915217,0.19558797,112400.0,112390.0,0.24335444]
[1760179916833,0.21674797,112400.0,112390.0,0.24335444]
[1760179917932,0.19558797,112400.0,112390.0,0.24335444]
[1760179918344,0.19558797,112400.0,112390.0,0.27625444]
[1760179918550,0.18051797,112400.0,112390.0,0.27625444]
[1760179920905,0.20243797,112400.0,112390.0,0.24335444]